bitfinex-derivatives/quotes_BNBF0:USTF0_20250608
["timestamp","ask_amount","ask_price","bid_price","bid_amount"]
[1749347339785,1.15523199,649.43,649.02,0.4]
[1749347340084,1.15523199,649.42,649.02,0.4]
[1749347340285,1.15523199,649.41,649.02,0.4]
[1749347340485,1.15523199,649.4,649.02,0.4]
[1749347340687,1.15523199,649.39,649.02,0.4]
[1749347340886,0.661,649.44,649.02,0.4]
[1749347341186,1.15506719,649.43,649.02,0.4]
[1749347341386,1.15506719,649.42,649.02,0.4]
[1749347341588,1.15506719,649.41,649.02,0.4]
[1749347341792,1.15506719,649.4,649.02,0.4]
[1749347341988,1.15506719,649.39,649.02,0.4]
[1749347342289,0.661,649.44,649.02,0.4]
[1749347342490,1.1550661,649.43,649.02,0.4]
[1749347342694,1.1550661,649.42,649.02,0.4]
[1749347342893,1.1550661,649.41,649.02,0.4]
[1749347343091,1.1550661,649.4,649.02,0.4]
[1749347343290,1.1550661,649.39,649.02,0.4]
[1749347343489,0.661,649.44,649.02,0.4]
[1749347343891,1.1550656,649.43,649.02,0.4]
[1749347344090,1.1550656,649.42,649.02,0.4]
[1749347344292,1.1550656,649.41,649.02,0.4]
[1749347344492,1.1550656,649.4,649.02,0.4]
[1749347344695,1.1550656,649.39,649.02,0.4]
[1749347344896,0.661,649.44,649.02,0.4]
[1749347345101,1.15506646,649.43,649.02,0.4]
[1749347345300,0.661,649.44,649.02,0.4]
[1749347345500,1.15506515,649.43,649.02,0.4]
[1749347345796,0.661,649.44,649.02,0.4]
[1749347346000,1.15504712,649.43,649.02,0.4]
[1749347346198,0.661,649.44,649.02,0.4]
[1749347346502,1.15504918,649.43,649.02,0.4]
[1749347346702,0.661,649.44,649.02,0.4]
[1749347348399,1.15502773,649.43,649.02,0.4]
[1749347348602,1.15502773,649.42,649.02,0.4]
[1749347348797,1.15502773,649.41,649.02,0.4]
[1749347348998,0.661,649.44,649.02,0.4]
[1749347349202,1.15502746,649.43,649.02,0.4]
[1749347349399,1.15502746,649.42,649.02,0.4]
[1749347349603,1.15502746,649.41,649.02,0.4]
[1749347349803,0.661,649.44,649.02,0.4]
[1749347350003,1.15487891,649.43,649.02,0.4]
[1749347350201,1.15487891,649.42,649.02,0.4]
[1749347350401,1.15487891,649.41,649.02,0.4]
[1749347350706,0.661,649.44,649.02,0.4]
[1749347350905,1.15488386,649.43,649.02,0.4]
[1749347351105,1.15488386,649.42,649.02,0.4]
[1749347351301,1.15488386,649.41,649.02,0.4]
[1749347351604,0.661,649.44,649.02,0.4]
[1749347351805,1.15488465,649.43,649.02,0.4]
[1749347352106,1.15488465,649.42,649.02,0.4]
[1749347352305,1.15488465,649.41,649.02,0.4]
[1749347352603,0.661,649.44,649.02,0.4]
[1749347352801,1.15488578,649.43,649.02,0.4]
[1749347353007,1.15488578,649.42,649.02,0.4]
[1749347353304,1.15488578,649.41,649.02,0.4]
[1749347353505,0.661,649.44,649.03,0.586]
[1749347353702,1.15488475,649.43,649.03,0.586]
[1749347353906,1.15488475,649.42,649.03,0.586]
[1749347354103,1.15488475,649.41,649.03,0.586]
[1749347354303,0.661,649.44,649.03,0.586]
[1749347354605,1.15887079,649.43,649.03,0.586]
[1749347354801,1.15887079,649.42,649.03,0.586]
[1749347355005,1.15887079,649.41,649.03,0.586]
[1749347355205,1.15887079,649.4,649.03,0.586]
[1749347355506,1.15887079,649.39,649.03,0.586]
[1749347355706,1.15887079,649.38,649.03,0.586]
[1749347356002,1.15887079,649.37,649.03,0.586]
[1749347356207,1.15887079,649.36,649.03,0.586]
[1749347356408,1.15887079,649.35,649.03,0.586]
[1749347356608,0.661,649.44,649.03,0.586]
[1749347356805,1.15844436,649.43,649.03,0.586]
[1749347357007,1.15844436,649.42,649.03,0.586]
[1749347357205,1.15844436,649.41,649.03,0.586]
[1749347357405,1.15844436,649.4,649.03,0.586]
[1749347357604,1.15844436,649.39,649.03,0.586]
[1749347357803,0.661,649.44,649.03,0.586]
[1749347357804,1.15844436,649.38,649.03,0.586]
[1749347358004,1.15844436,649.37,649.03,0.586]
[1749347358206,0.661,649.44,649.03,0.586]
[1749347358511,1.15842086,649.43,649.03,0.586]
[1749347358810,1.15842086,649.42,649.03,0.586]
[1749347359008,1.15842086,649.41,649.03,0.586]
[1749347359211,1.15842086,649.4,649.03,0.586]
[1749347359507,1.15842086,649.39,649.03,0.586]
[1749347359811,1.15842086,649.38,649.03,0.586]
[1749347360011,1.15842086,649.37,649.03,0.586]
[1749347360208,0.661,649.44,649.03,0.586]
[1749347360410,1.15842122,649.43,649.03,0.586]
[1749347360712,1.15842122,649.42,649.03,0.586]
[1749347360910,1.15842122,649.41,649.03,0.586]
[1749347361210,1.15842122,649.4,649.03,0.586]
[1749347361408,1.15842122,649.39,649.03,0.586]
[1749347361607,1.15842122,649.38,649.03,0.586]
[1749347361907,1.15842122,649.37,649.03,0.586]
[1749347362113,0.661,649.44,649.03,0.586]
[1749347362409,1.15777474,649.43,649.03,0.586]
[1749347362609,1.15777474,649.42,649.03,0.586]
[1749347362908,1.15777474,649.41,649.03,0.586]
[1749347363112,1.15777474,649.4,649.03,0.586]
[1749347363312,1.15777474,649.39,649.03,0.586]
[1749347363510,1.15777474,649.38,649.03,0.586]
[1749347363713,1.15777474,649.37,649.03,0.586]
[1749347363909,0.661,649.44,649.03,0.586]
[1749347364113,1.15777484,649.43,649.03,0.586]
[1749347364311,1.15777484,649.42,649.03,0.586]
[1749347364510,1.15777484,649.41,649.03,0.586]
[1749347364715,1.15777484,649.4,649.03,0.586]
[1749347365014,1.15777484,649.39,649.03,0.586]
[1749347365213,1.15777484,649.38,649.03,0.586]
[1749347365415,0.661,649.44,649.03,0.586]
[1749347365711,1.15775637,649.43,649.03,0.586]
[1749347365913,1.15775637,649.42,649.03,0.586]
[1749347366214,1.15775637,649.41,649.03,0.586]
[1749347366416,1.15775637,649.4,649.03,0.586]
[1749347366709,1.15775637,649.39,649.03,0.586]
[1749347366911,1.15775637,649.38,649.03,0.586]
[1749347367111,0.661,649.44,649.03,0.586]
[1749347367316,1.15775586,649.43,649.03,0.586]
[1749347367516,1.15775586,649.42,649.03,0.586]
[1749347367716,1.15775586,649.41,649.03,0.586]
[1749347368013,1.15775586,649.4,649.03,0.586]
[1749347368218,1.15775586,649.39,649.03,0.586]
[1749347368412,1.15775586,649.38,649.03,0.586]
[1749347368610,0.661,649.44,649.04,0.4]
[1749347368815,1.1577563,649.43,649.04,0.4]
[1749347369014,1.1577563,649.42,649.04,0.4]
[1749347369217,1.1577563,649.41,649.04,0.4]
[1749347369517,1.1577563,649.4,649.04,0.4]
[1749347369718,1.1577563,649.39,649.04,0.4]
[1749347369919,0.661,649.44,649.04,0.4]
[1749347370115,1.15775678,649.43,649.04,0.4]
[1749347370317,1.15775678,649.42,649.04,0.4]
[1749347370519,1.15775678,649.41,649.04,0.4]
[1749347370714,1.15775678,649.4,649.04,0.4]
[1749347370916,1.15775678,649.39,649.04,0.4]
[1749347371216,0.661,649.44,649.04,0.4]
[1749347371413,1.15794309,649.43,649.04,0.4]
[1749347371618,1.15794309,649.42,649.04,0.4]
[1749347371818,1.15794309,649.41,649.04,0.4]
[1749347372017,1.15794309,649.4,649.04,0.4]
[1749347372220,1.15794309,649.39,649.04,0.4]
[1749347372515,1.15794309,649.38,649.04,0.4]
[1749347372718,0.661,649.44,649.04,0.4]
[1749347372920,1.15794794,649.43,649.04,0.4]
[1749347373120,1.15794794,649.42,649.04,0.4]
[1749347373420,1.15794794,649.41,649.04,0.4]
[1749347373620,0.661,649.44,649.04,0.4]
[1749347373621,1.15794794,649.4,649.04,0.4]
[1749347373815,1.15794794,649.39,649.04,0.4]
[1749347374016,0.661,649.44,649.04,0.4]
[1749347374220,1.15795002,649.43,649.04,0.4]
[1749347374414,1.15795002,649.42,649.04,0.4]
[1749347374621,1.15795002,649.41,649.05,0.898]
[1749347374820,1.15795002,649.4,649.05,0.898]
[1749347375117,1.15795002,649.39,649.05,0.898]
[1749347375320,1.15795002,649.38,649.05,0.898]
[1749347375521,1.15795002,649.37,649.05,0.898]
[1749347375720,0.661,649.44,649.05,0.898]
[1749347376018,1.15797443,649.43,649.05,0.898]
[1749347376218,1.15797443,649.42,649.05,0.898]
[1749347376421,1.15797443,649.41,649.05,0.898]
[1749347376720,1.15797443,649.4,649.05,0.898]
[1749347376920,1.15797443,649.39,649.05,0.898]
[1749347377117,1.15797443,649.38,649.05,0.898]
[1749347377316,1.15797443,649.37,649.05,0.898]
[1749347377525,0.26797884,649.45,649.05,0.898]
[1749347377719,1.15797508,649.44,649.05,0.898]
[1749347378023,1.15797508,649.43,649.05,0.898]
[1749347378222,1.15797508,649.42,649.05,0.898]
[1749347378420,1.15797508,649.41,649.05,0.898]
[1749347378719,1.15797508,649.4,649.05,0.898]
[1749347379022,1.15797508,649.39,649.05,0.898]
[1749347379218,1.15797508,649.38,649.05,0.898]
[1749347379419,1.15797508,649.37,649.05,0.898]
[1749347379619,0.754,649.4,649.05,0.898]
[1749347379820,1.15799371,649.39,649.05,0.898]
[1749347380018,1.15799371,649.38,649.05,0.898]
[1749347380322,1.15799371,649.37,649.05,0.898]
[1749347380623,0.754,649.4,649.05,0.898]
[1749347380823,1.1579727,649.39,649.05,0.898]
[1749347381022,1.1579727,649.38,649.05,0.898]
[1749347381219,1.1579727,649.37,649.05,0.898]
[1749347381421,0.754,649.4,649.05,0.898]
[1749347381618,1.1579801,649.39,649.05,0.898]
[1749347381824,1.1579801,649.38,649.05,0.898]
[1749347382123,1.1579801,649.37,649.05,0.898]
[1749347382317,0.754,649.4,649.05,0.898]
[1749347382521,1.15702602,649.39,649.05,0.898]
[1749347382817,1.15702602,649.38,649.05,0.898]
[1749347383019,1.15702602,649.37,649.06,0.4]
[1749347383317,0.754,649.4,649.06,0.4]
[1749347383518,1.15700904,649.39,649.06,0.4]
[1749347383720,1.15700904,649.38,649.06,0.4]
[1749347383919,1.15700904,649.37,649.06,0.4]
[1749347384119,0.754,649.4,649.06,0.4]
[1749347384324,1.1569926,649.39,649.06,0.4]
[1749347384524,1.1569926,649.38,649.06,0.4]
[1749347384819,1.1569926,649.37,649.06,0.4]
[1749347385020,0.754,649.4,649.06,0.4]
[1749347385225,1.15699519,649.39,649.06,0.4]
[1749347385522,1.15699519,649.38,649.06,0.4]
[1749347385724,1.15699519,649.37,649.06,0.4]
[1749347385925,0.754,649.4,649.06,0.4]
[1749347386220,1.15696576,649.39,649.06,0.4]
[1749347386427,1.15696576,649.38,649.06,0.4]
[1749347386621,1.15696576,649.37,649.06,0.4]
[1749347386821,0.754,649.4,649.06,0.4]
[1749347387024,1.15695663,649.39,649.06,0.4]
[1749347387225,1.15695663,649.38,649.06,0.4]
[1749347387525,1.15695663,649.37,649.06,0.4]
[1749347387725,0.754,649.4,649.06,0.4]
[1749347387926,1.15694393,649.39,649.06,0.4]
[1749347388122,1.15694393,649.38,649.06,0.4]
[1749347388323,1.15694393,649.37,649.06,0.4]
[1749347388525,0.754,649.4,649.06,0.4]
[1749347388825,1.15693494,649.39,649.06,0.4]
[1749347389023,1.15693494,649.38,649.06,0.4]
[1749347389221,1.15693494,649.37,649.06,0.4]
[1749347389423,0.754,649.4,649.06,0.4]
[1749347389627,1.15692714,649.39,649.06,0.4]
[1749347389827,1.15692714,649.38,649.06,0.4]
[1749347390022,1.15692714,649.37,649.06,0.4]
[1749347390227,0.754,649.4,649.06,0.4]
[1749347390426,1.15692714,649.39,649.06,0.4]
[1749347390726,1.15692714,649.38,649.06,0.4]
[1749347390927,1.15692714,649.37,649.06,0.4]
[1749347391126,1.15695895,649.36,649.06,0.4]
[1749347391426,0.754,649.4,649.06,0.4]
[1749347391723,1.15695099,649.39,649.06,0.4]
[1749347391925,1.15695099,649.38,649.06,0.4]
[1749347392124,1.15695099,649.37,649.06,0.4]
[1749347392330,0.754,649.4,649.06,0.4]
[1749347392630,1.15694328,649.39,649.06,0.4]
[1749347392829,1.15694328,649.38,649.06,0.4]
[1749347393027,1.15694328,649.37,649.06,0.4]
[1749347393330,0.754,649.4,649.06,0.4]
[1749347393526,1.15693738,649.39,649.06,0.4]
[1749347393731,1.15693738,649.38,649.06,0.4]
[1749347393931,1.15693738,649.37,649.06,0.4]
[1749347394125,0.754,649.4,649.06,0.4]
[1749347394326,1.15693839,649.39,649.06,0.4]
[1749347394529,1.15693839,649.38,649.06,0.4]
[1749347394828,1.15693839,649.37,649.06,0.4]
[1749347395126,0.754,649.4,649.06,0.4]
[1749347398032,0.754,649.4,648.65,3.84417155]
[1749347398334,1.15702919,649.39,648.43,5.38184017]
[1749347398633,1.15702919,649.38,648.43,5.38184017]
[1749347398834,1.15702919,649.37,648.43,5.38184017]
[1749347399133,1.15702919,649.36,648.35,0.26803457]
[1749347399329,1.15702919,649.35,648.36,0.3084706]
[1749347399533,1.15702919,649.34,648.36,0.3084706]
[1749347399734,1.15702919,649.33,648.36,0.3084706]
[1749347400034,1.15702919,649.32,648.36,0.3084706]
[1749347400232,0.26797884,649.45,648.37,0.631]
[1749347400432,1.15633154,649.44,648.38,0.30846108]
[1749347400728,1.15633154,649.43,648.38,0.30846108]
[1749347400933,1.15633154,649.42,648.38,0.30846108]
[1749347401130,1.15633154,649.41,648.38,0.30846108]
[1749347401335,1.15633154,649.4,648.38,0.30846108]
[1749347401632,0.26811407,649.16,648.38,0.30846108]
[1749347401830,0.26811407,649.16,648.39,0.401]
[1749347402932,0.578,649.15,648.39,0.401]
[1749347408436,0.578,649.15,648.54,3.84417155]
[1749347413438,0.578,649.15,648.53,3.84417155]
[1749347415238,0.578,649.15,648.47,3.84417155]
[1749347416542,0.578,649.15,648.48,0.871]
[1749347424950,0.578,649.15,648.56,3.84417155]
[1749347433958,0.26811407,649.16,648.56,3.84417155]
[1749347434254,0.26811407,649.16,648.57,0.401]
[1749347435453,0.26811407,649.16,648.65,3.84417155]
[1749347436555,0.909,649.15,648.65,3.84417155]
[1749347440156,0.909,649.15,648.66,0.862]
[1749347443457,0.909,649.15,648.66,4.70617155]
[1749347445366,0.909,649.15,648.66,0.862]
[1749347452465,0.909,649.15,648.67,0.30832318]
[1749347465074,0.909,649.15,648.72,3.84417155]
[1749347465573,0.14977196,649.15,648.73,0.761]
[1749347466675,0.14977196,649.15,648.74,0.4]
[1749347480481,0.14977196,649.15,648.75,0.30828516]
[1749347484483,0.14977196,649.15,648.76,0.4]
[1749347484684,0.14977196,649.15,648.77,0.30827566]
[1749347488386,0.14977196,649.15,648.77,4.15244721]
[1749347489687,0.14977196,649.15,648.78,0.813]
[1749347489891,0.14977196,649.15,648.79,0.30826615]
[1749347490992,0.03138536,649.15,648.79,0.30826615]
[1749347491792,0.26791798,649.48,648.79,0.30826615]
[1749347492693,1.15010984,650.27,648.79,0.30826615]
[1749347492992,0.30756927,650.26,648.79,0.30826615]
[1749347493194,0.26788189,649.59,648.79,0.30826615]
[1749347493388,0.30756927,650.26,648.79,0.30826615]
[1749347493690,0.26787467,649.9,648.79,0.30826615]
[1749347494589,0.802,649.89,648.79,0.30826615]
[1749347503600,0.802,649.89,648.82,3.84417155]
[1749347503801,0.802,649.89,648.83,0.30824715]
[1749347509202,0.802,649.89,648.84,0.398]
[1749347509400,0.802,649.89,648.85,0.30823765]
[1749347514412,0.802,649.89,648.89,3.84417155]
[1749347514613,0.802,649.89,648.9,0.3082139]
[1749347514813,0.802,649.89,648.96,3.84417155]
[1749347515112,0.802,649.89,648.97,0.30818065]
[1749347515411,0.802,649.89,648.97,4.1523522]
[1749347515910,0.802,649.89,648.97,0.30818065]
[1749347519116,0.802,649.89,648.98,0.669]
[1749347519319,0.802,649.89,648.99,0.30817115]
[1749347539628,0.802,649.89,649.0,0.397]
[1749347539832,0.802,649.89,649.01,0.30816166]
[1749347541431,0.802,649.89,649.04,3.84417155]
[1749347543336,0.802,649.89,649.02,3.84417155]
[1749347543636,0.802,649.89,649.02,4.15232846]
[1749347543840,0.802,649.89,649.03,3.84417155]
[1749347544741,0.802,649.89,649.04,3.84417155]
[1749347545542,0.802,649.89,649.02,0.30815691]
[1749347545942,0.802,649.89,649.03,0.697]
[1749347550141,0.802,649.89,649.07,3.84417155]
[1749347550643,0.802,649.89,649.03,4.54117155]
[1749347551544,0.26787467,649.9,649.03,4.54117155]
[1749347552744,0.26787467,649.9,649.04,3.84417155]
[1749347553245,0.26787467,649.9,649.05,3.84417155]
[1749347554841,0.677,649.89,649.05,3.84417155]
[1749347555446,0.677,649.89,649.06,3.84417155]
[1749347556850,0.677,649.89,649.07,3.84417155]
[1749347561751,0.677,649.89,649.08,3.84417155]
[1749347566759,0.26787467,649.9,649.08,3.84417155]
[1749347568159,0.26787467,649.9,649.03,0.697]
[1749347568160,0.26787467,649.9,649.07,3.84417155]
[1749347570458,0.89,649.89,649.07,3.84417155]
[1749347571262,0.89,649.89,649.08,0.397]
[1749347571558,0.89,649.89,649.08,4.24117155]
[1749347574970,0.89,649.89,649.09,0.809]
[1749347588478,0.26787467,649.9,649.09,0.809]
[1749347591383,0.682,649.89,649.09,0.809]
[1749347593187,1.16020707,649.88,649.09,0.809]
[1749347593383,1.16020707,649.87,649.09,0.809]
[1749347593678,0.682,649.89,649.09,0.809]
[1749347593679,1.16020707,649.86,649.09,0.809]
[1749347593984,1.16020707,649.85,649.09,0.809]
[1749347594286,1.16020707,649.84,649.09,0.809]
[1749347594578,1.16020707,649.83,649.09,0.809]
[1749347594779,0.682,649.89,649.09,0.809]
[1749347594780,1.16020707,649.82,649.09,0.809]
[1749347594979,0.682,649.89,649.09,0.809]
[1749347595180,1.16289368,649.88,649.09,0.809]
[1749347595382,1.16289368,649.87,649.09,0.809]
[1749347595580,1.16289368,649.86,649.09,0.809]
[1749347595778,0.682,649.89,649.09,0.809]
[1749347595779,1.16289368,649.85,649.09,0.809]
[1749347595984,0.682,649.89,649.09,0.809]
[1749347595985,1.16289368,649.84,649.09,0.809]
[1749347596184,1.16289368,649.83,649.09,0.809]
[1749347596380,0.682,649.89,649.09,0.809]
[1749347596583,1.16280749,649.88,649.09,0.809]
[1749347596881,1.16280749,649.87,649.1,0.397]
[1749347597185,1.16280749,649.86,649.1,0.397]
[1749347597381,1.16280749,649.85,649.1,0.397]
[1749347597580,1.16280749,649.84,649.1,0.397]
[1749347597780,1.16280749,649.83,649.1,0.397]
[1749347597983,0.682,649.89,649.1,0.397]
[1749347598181,1.16143801,649.88,649.1,0.397]
[1749347598484,1.16143801,649.87,649.1,0.397]
[1749347598783,0.682,649.89,649.1,0.397]
[1749347598784,1.16143801,649.86,649.1,0.397]
[1749347598979,1.16143801,649.85,649.1,0.397]
[1749347599183,1.16143801,649.84,649.1,0.397]
[1749347599382,0.682,649.89,649.1,0.397]
[1749347599684,1.16138675,649.88,649.1,0.397]
[1749347599880,1.16138675,649.87,649.1,0.397]
[1749347600084,1.16138675,649.86,649.1,0.397]
[1749347600380,1.16138675,649.85,649.1,0.397]
[1749347600585,0.682,649.89,649.1,0.397]
[1749347600783,1.16143067,649.88,649.11,0.6]
[1749347600983,1.16143067,649.87,649.11,0.6]
[1749347601184,1.16143067,649.86,649.11,0.6]
[1749347601381,1.16143067,649.85,649.11,0.6]
[1749347601585,0.682,649.89,649.11,0.6]
[1749347601586,1.16143067,649.84,649.11,0.6]
[1749347601784,0.682,649.89,649.11,0.6]
[1749347601986,1.16116424,649.88,649.11,0.6]
[1749347602180,1.16116424,649.87,649.11,0.6]
[1749347602382,1.16116424,649.86,649.11,0.6]
[1749347602583,1.16116424,649.85,649.11,0.6]
[1749347602783,1.16116424,649.84,649.11,0.6]
[1749347602982,0.682,649.89,649.11,0.6]
[1749347603186,1.16121668,649.88,649.11,0.6]
[1749347603485,1.16121668,649.87,649.11,0.6]
[1749347603786,1.16121668,649.86,649.11,0.6]
[1749347603986,1.16121668,649.85,649.11,0.6]
[1749347604183,1.16121668,649.84,649.11,0.6]
[1749347604388,0.682,649.89,649.11,0.6]
[1749347604587,1.16123642,649.88,649.11,0.6]
[1749347604786,1.16123642,649.87,649.11,0.6]
[1749347604983,1.16123642,649.86,649.11,0.6]
[1749347605183,1.16123642,649.85,649.11,0.6]
[1749347605386,0.682,649.89,649.11,0.6]
[1749347606688,1.16155142,649.88,649.11,0.6]
[1749347606983,0.682,649.89,649.11,0.6]
[1749347607188,1.16155142,649.88,649.11,0.6]
[1749347607385,0.682,649.89,649.11,0.6]
[1749347607684,1.16158119,649.88,649.11,0.6]
[1749347607888,0.682,649.89,649.11,0.6]
[1749347608089,1.16158123,649.88,649.11,0.6]
[1749347608289,0.682,649.89,649.11,0.6]
[1749347608589,1.16161226,649.88,649.11,0.6]
[1749347608888,0.682,649.89,649.11,0.6]
[1749347609088,1.16161107,649.88,649.11,0.6]
[1749347609285,0.682,649.89,649.11,0.6]
[1749347609490,1.16160027,649.88,649.11,0.6]
[1749347609687,0.682,649.89,649.11,0.6]
[1749347609891,1.1616522,649.88,649.11,0.6]
[1749347610186,0.682,649.89,649.11,0.6]
[1749347610390,1.1616506,649.88,649.11,0.6]
[1749347610690,0.26787467,649.9,649.11,0.6]
[1749347610886,1.16165779,649.89,649.11,0.6]
[1749347611091,1.16165779,649.88,649.11,0.6]
[1749347611288,0.26787467,649.9,649.11,0.6]
[1749347611486,1.16164724,649.89,649.11,0.6]
[1749347611687,0.26787467,649.9,649.11,0.6]
[1749347611688,1.16164724,649.88,649.11,0.6]
[1749347611887,0.26787467,649.9,649.11,0.6]
[1749347612091,1.16164238,649.89,649.11,0.6]
[1749347612288,1.16164238,649.88,649.11,0.6]
[1749347612487,0.26787467,649.9,649.11,0.6]
[1749347612787,1.16163627,649.89,649.1,0.397]
[1749347612986,1.16163627,649.88,649.1,0.397]
[1749347613192,0.26787467,649.9,649.1,0.397]
[1749347613392,0.906,649.87,649.1,0.397]
[1749347615289,1.16161264,649.86,649.1,0.397]
[1749347615491,0.906,649.87,649.1,0.397]
[1749347615492,1.16161264,649.85,649.1,0.397]
[1749347615692,1.16161264,649.84,649.1,0.397]
[1749347615893,1.16161264,649.83,649.1,0.397]
[1749347616092,1.16161264,649.82,649.1,0.397]
[1749347616389,0.906,649.87,649.1,0.397]
[1749347616592,1.16221347,649.86,649.1,0.397]
[1749347616793,1.16221347,649.85,649.11,0.775]
[1749347616991,0.906,649.87,649.11,0.775]
[1749347616992,1.16221347,649.84,649.11,0.775]
[1749347617188,1.16221347,649.83,649.11,0.775]
[1749347617390,1.16221347,649.82,649.11,0.775]
[1749347617593,0.906,649.87,649.11,0.775]
[1749347617795,1.1620611,649.86,649.11,0.775]
[1749347618092,1.1620611,649.85,649.11,0.775]
[1749347618296,1.1620611,649.84,649.11,0.775]
[1749347618496,1.1620611,649.83,649.11,0.775]
[1749347618793,1.1620611,649.82,649.11,0.775]
[1749347619096,0.906,649.87,649.11,0.775]
[1749347619294,1.16077131,649.86,649.11,0.775]
[1749347619495,1.16077131,649.85,649.11,0.775]
[1749347619793,1.16077131,649.84,649.11,0.775]
[1749347619995,1.16077131,649.83,649.11,0.775]
[1749347620193,1.16077131,649.82,649.11,0.775]
[1749347620393,0.906,649.87,649.11,0.775]
[1749347620692,1.16077469,649.86,649.11,0.775]
[1749347620898,1.16077469,649.85,649.11,0.775]
[1749347621099,1.16077469,649.84,649.11,0.775]
[1749347621299,1.16077469,649.83,649.11,0.775]
[1749347621595,1.16077469,649.82,649.11,0.775]
[1749347621797,0.906,649.87,649.11,0.775]
[1749347621996,1.16061899,649.86,649.11,0.775]
[1749347622196,1.16061899,649.85,649.11,0.775]
[1749347622399,1.16061899,649.84,649.11,0.775]
[1749347622598,1.16061899,649.83,649.11,0.775]
[1749347622796,1.16061899,649.82,649.11,0.775]
[1749347623000,1.16061899,649.81,649.11,0.775]
[1749347623200,0.906,649.87,649.11,0.775]
[1749347623402,1.16063752,649.86,649.11,0.775]
[1749347623602,1.16063752,649.85,649.11,0.775]
[1749347623803,1.16063752,649.84,649.11,0.775]
[1749347624003,1.16063752,649.83,649.11,0.775]
[1749347624300,1.16063752,649.82,649.11,0.775]
[1749347624504,1.16063752,649.81,649.11,0.775]
[1749347624702,0.906,649.87,649.11,0.775]
[1749347624903,1.16063288,649.86,649.11,0.775]
[1749347625201,1.16063288,649.85,649.11,0.775]
[1749347625400,1.16063288,649.84,649.11,0.775]
[1749347625601,1.16063288,649.83,649.11,0.775]
[1749347625804,1.16063288,649.82,649.11,0.775]
[1749347626001,0.906,649.87,649.11,0.775]
[1749347626202,1.16059938,649.86,649.11,0.775]
[1749347626402,1.16059938,649.85,649.11,0.775]
[1749347626605,1.16059938,649.84,649.11,0.775]
[1749347626908,1.16059938,649.83,649.11,0.775]
[1749347627100,1.16059938,649.82,649.11,0.775]
[1749347627406,0.906,649.87,649.11,0.775]
[1749347627605,1.16074871,649.86,649.11,0.775]
[1749347627806,1.16074871,649.85,649.11,0.775]
[1749347628007,1.16074871,649.84,649.11,0.775]
[1749347628207,0.906,649.87,649.11,0.775]
[1749347628208,1.16074871,649.83,649.11,0.775]
[1749347628406,1.16074871,649.82,649.11,0.775]
[1749347628609,0.26787467,649.9,649.11,0.775]
[1749347628810,1.1607774,649.89,649.11,0.775]
[1749347629005,1.1607774,649.88,649.11,0.775]
[1749347629209,1.1607774,649.87,649.11,0.775]
[1749347629411,1.1607774,649.86,649.11,0.775]
[1749347629607,1.1607774,649.85,649.11,0.775]
[1749347629810,1.1607774,649.84,649.11,0.775]
[1749347630011,0.26787467,649.9,649.11,0.775]
[1749347630012,1.1607774,649.83,649.11,0.775]
[1749347630207,1.1607774,649.82,649.11,0.775]
[1749347630412,0.26787467,649.9,649.11,0.775]